[Event "Amsterdam Chess Open 2024"]
[Site "Amsterdam"]
[Date "2024.11.01"]
[Round "2.27"]
[White "Tobias Pilz"]
[Black "Marijn Demarteau"]
[Result "1-0"]
[ECO "D94"]
[WhiteElo "1700"]
[BlackElo "1535"]
[Annotator "NA RC"]
[PlyCount "71"]
[EventDate "2024.10.31"]
[EventType "swiss"]
[EventCountry "NED"]
[SourceTitle "playchess.com"]
[Source "ChessBase"]
[SourceQuality "1"]
[TimeControl "5400+30"]

1. e3 {[%emt 0:00:04]} g6 {[%emt 0:01:14]} 2. Nf3 {[%emt 0:00:15]} Bg7 {[%emt 0:00:11]} 3. d4 {[%emt 0:00:10]} d5 {[%emt 0:00:20]} 4. c4 {[%emt 0:00:09]} c5 {[%emt 0:00:30]} 5. Nc3 {[%emt 0:00:14]} Nf6 {[%emt 0:00:19]} 6. Bd3 {[%emt 0:00:23]} Nc6 {[%emt 0:00:31]} 7. dxc5 {[%emt 0:00:59]} dxc4 {[%emt 0:01:54]} 8. Bxc4 {[%emt 0:00:29]} Qxd1+ {[%emt 0:01:09]} 9. Nxd1 {[%emt 0:00:47]} O-O {[%emt 0:01:24]} 10. Nc3 {[%emt 0:01:45]} Bf5 {[%emt 0:01:23]} 11. O-O {[%emt 0:05:53]} Rac8 {[%emt 0:03:37]} 12. Nh4 {[%emt 0:07:07]} Be6 {[%emt 0:06:14]} 13. Bxe6 {[%emt 0:00:38]} fxe6 {[%emt 0:00:23]} 14. Rd1 {[%emt 0:03:56]} Rcd8 {[%emt 0:04:47]} 15. Rxd8 {[%emt 0:00:36]} Rxd8 {[%emt 0:00:27]} 16. Kf1 {[%emt 0:02:47]} a6 {[%emt 0:02:51]} 17. Nf3 {[%emt 0:05:21]} e5 {[%emt 0:02:12]} 18. Ke2 {[%emt 0:01:55]} Nd7 {[%emt 0:05:24]} 19. Na4 {[%emt 0:02:55]} Bf6 {[%emt 0:04:43]} 20. Bd2 {[%emt 0:06:01]} e4 {[%emt 0:06:30]} 21. Ng1 {[%emt 0:02:04]} Be5 {[%emt 0:04:41]} 22. h4 {[%emt 0:01:21]} Kf7 {[%emt 0:02:19]} 23. Rc1 {[%emt 0:01:09]} Bc7 {[%emt 0:01:21]} 24. Rc4 {[%emt 0:01:43]} Nf6 {[%emt 0:00:57]} 25. Bc3 {[%emt 0:02:51]} Ne5 {[%emt 0:02:42]} 26. Bxe5 {[%emt 0:01:42]} Bxe5 {[%emt 0:00:47]} 27. Ke1 {[%emt 0:02:46]} Ke6 {[%emt 0:04:12]} 28. Ne2 {[%emt 0:01:07]} Bc7 {[%emt 0:04:48]} 29. Nac3 {[%emt 0:02:04]} Ke5 {[%emt 0:02:05]} 30. Ng3 {[%emt 0:01:30]} Rd7 {[%emt 0:06:40]} 31. Ngxe4 {[%emt 0:03:22]} Nxe4 {[%emt 0:04:46]} 32. Rxe4+ {[%emt 0:00:11]} Kf6 {[%emt 0:01:28]} 33. Rc4 {[%emt 0:00:35]} Be5 {[%emt 0:01:06]} 34. c6 {[%emt 0:01:02]} bxc6 {[%emt 0:01:09]} 35. Rxc6+ {[%emt 0:00:16]} Rd6 {[%emt 0:01:41]} 36. Ne4+ {[%emt 0:00:04]} 1-0

[Event "Amsterdam Chess Open 2024"]
[Site "Amsterdam"]
[Date "2024.11.01"]
[Round "2.28"]
[White "Paul Shellard"]
[Black "Boom, Harrie"]
[Result "1/2-1/2"]
[ECO "D78"]
[WhiteElo "1550"]
[BlackElo "1696"]
[Annotator "NA RC"]
[PlyCount "22"]
[EventDate "2024.10.31"]
[EventType "swiss"]
[EventCountry "NED"]
[SourceTitle "playchess.com"]
[Source "ChessBase"]
[SourceQuality "1"]
[TimeControl "5400+30"]

1. d4 {[%emt 0:00:03]} Nf6 {[%emt 0:00:10]} 2. Nf3 {[%emt 0:00:23]} g6 {[%emt 0:00:40]} 3. c4 {[%emt 0:00:31]} Bg7 {[%emt 0:00:25]} 4. g3 {[%emt 0:01:14]} O-O {[%emt 0:00:58]} 5. Bg2 {[%emt 0:00:05]} c6 {[%emt 0:00:50]} 6. O-O {[%emt 0:00:24]} d5 {[%emt 0:00:29]} 7. Qc2 {[%emt 0:03:40]} Nbd7 {[%emt 0:04:40]} 8. Nbd2 {[%emt 0:02:37]} Re8 {[%emt 0:01:20]} 9. b3 {[%emt 0:10:00]} e5 {[%emt 0:06:16]} 10. dxe5 {[%emt 0:00:36]} Nxe5 {[%emt 0:00:13]} 11. Bb2 {[%emt 0:01:03]} Nxf3+ {[%emt 0:04:50]} 1/2-1/2

[Event "Amsterdam Chess Open 2024"]
[Site "Amsterdam"]
[Date "2024.11.01"]
[Round "2.29"]
[White "Chaganti, Prahasith Reddy"]
[Black "Menno Krajenbrink"]
[Result "1/2-1/2"]
[ECO "B13"]
[WhiteElo "1692"]
[BlackElo "1513"]
[Annotator "NA RC"]
[PlyCount "104"]
[EventDate "2024.10.31"]
[EventType "swiss"]
[EventCountry "NED"]
[SourceTitle "playchess.com"]
[Source "ChessBase"]
[SourceQuality "1"]
[TimeControl "5400+30"]

1. e4 {[%emt 0:00:12]} c6 {[%emt 0:00:05]} 2. d4 {[%emt 0:00:15]} d5 {[%emt 0:00:09]} 3. exd5 {[%emt 0:00:23]} cxd5 {[%emt 0:00:06]} 4. Bd3 {[%emt 0:00:26]} Nc6 {[%emt 0:00:40]} 5. c3 {[%emt 0:00:33]} Nf6 {[%emt 0:00:09]} 6. h3 {[%emt 0:01:13]} e6 {[%emt 0:04:10]} 7. Bf4 {[%emt 0:00:37]} Be7 {[%emt 0:00:56]} 8. Nf3 {[%emt 0:00:37]} a6 {[%emt 0:00:33]} 9. Nbd2 {[%emt 0:01:14]} O-O {[%emt 0:00:47]} 10. O-O {[%emt 0:00:32]} b5 {[%emt 0:00:34]} 11. a3 {[%emt 0:00:29]} Qb6 {[%emt 0:02:45]} 12. Qc2 {[%emt 0:01:12]} g6 {[%emt 0:05:32]} 13. Bh6 {[%emt 0:01:42]} Re8 {[%emt 0:00:46]} 14. Ng5 {[%emt 0:03:52]} e5 {[%emt 0:02:50]} 15. dxe5 {[%emt 0:00:34]} Nxe5 {[%emt 0:00:22]} 16. Rfe1 {[%emt 0:00:43]} Nxd3 {[%emt 0:00:53]} 17. Qxd3 {[%emt 0:00:33]} Bf5 {[%emt 0:01:00]} 18. Qg3 {[%emt 0:00:49]} d4 {[%emt 0:07:04]} 19. cxd4 {[%emt 0:01:56]} Qxd4 {[%emt 0:02:02]} 20. Qb3 {[%emt 0:01:31]} Qd5 {[%emt 0:03:00]} 21. Qf3 {[%emt 0:06:17]} Rac8 {[%emt 0:10:32]} 22. Nde4 {[%emt 0:04:05]} Nxe4 {[%emt 0:03:21]} 23. Nxe4 {[%emt 0:00:11]} Bxe4 {[%emt 0:00:39]} 24. Rxe4 {[%emt 0:00:09]} Qd7 {[%emt 0:02:35]} 25. Rd1 {[%emt 0:00:30]} Qf5 {[%emt 0:09:26]} 26. Qxf5 {[%emt 0:00:38]} gxf5 {[%emt 0:00:02]} 27. Re5 {[%emt 0:00:08]} Bf8 {[%emt 0:06:47]} 28. Bf4 {[%emt 0:00:54]} Rxe5 {[%emt 0:02:36]} 29. Bxe5 {[%emt 0:00:02]} Bg7 {[%emt 0:00:32]} 30. Bxg7 {[%emt 0:00:47]} Kxg7 {[%emt 0:02:32]} 31. Rd6 {[%emt 0:00:32]} Rc1+ {[%emt 0:00:18]} 32. Kh2 {[%emt 0:00:06]} Rc2 {[%emt 0:00:33]} 33. b4 {[%emt 0:00:07]} Rxf2 {[%emt 0:00:25]} 34. Rxa6 {[%emt 0:00:12]} f4 {[%emt 0:00:25]} 35. Ra5 {[%emt 0:00:05]} f3 {[%emt 0:03:40]} 36. Kg3 {[%emt 0:00:32]} Rxg2+ {[%emt 0:00:41]} 37. Kxf3 {[%emt 0:00:07]} Ra2 {[%emt 0:00:09]} 38. Rxb5 {[%emt 0:01:02]} Rxa3+ {[%emt 0:00:07]} 39. Kg4 {[%emt 0:00:09]} Rb3 {[%emt 0:00:28]} 40. Rb7 {[%emt 0:00:18]} h5+ {[%emt 0:01:50]} 41. Kxh5 {[%emt 0:00:15]} Rxh3+ {[%emt 0:00:15]} 42. Kg4 {[%emt 0:00:06]} Rb3 {[%emt 0:00:18]} 43. b5 {[%emt 0:00:47]} Kf6 {[%emt 0:00:14]} 44. Kf4 {[%emt 0:00:14]} Rb4+ {[%emt 0:00:49]} 45. Ke3 {[%emt 0:00:07]} Ke5 {[%emt 0:00:30]} 46. Kd3 {[%emt 0:01:27]} Kd5 {[%emt 0:01:03]} 47. Kc3 {[%emt 0:00:20]} Rb1 {[%emt 0:00:40]} 48. Rd7+ {[%emt 0:01:59]} Kc5 {[%emt 0:01:29]} 49. Rc7+ {[%emt 0:00:13]} Kd5 {[%emt 0:00:14]} 50. Rxf7 {[%emt 0:01:27]} Rxb5 {[%emt 0:00:14]} 51. Rf5+ {[%emt 0:00:04]} Kc6 {[%emt 0:00:11]} 52. Rxb5 {[%emt 0:00:04]} Kxb5 {[%emt 0:00:05]} 1/2-1/2

[Event "Amsterdam Chess Open 2024"]
[Site "Amsterdam"]
[Date "2024.11.01"]
[Round "2.30"]
[White "Witte, Phoebe"]
[Black "Samir Munshi"]
[Result "1-0"]
[ECO "C70"]
[WhiteElo "1619"]
[BlackElo "1400"]
[Annotator "NA RC"]
[PlyCount "77"]
[EventDate "2024.10.31"]
[EventType "swiss"]
[EventCountry "NED"]
[SourceTitle "playchess.com"]
[Source "ChessBase"]
[SourceQuality "1"]
[TimeControl "5400+30"]

1. e4 {[%emt 0:00:07]} e5 {[%emt 0:00:03]} 2. Nf3 {[%emt 0:00:10]} Nc6 {[%emt 0:00:03]} 3. Bb5 {[%emt 0:00:08]} Bc5 {[%emt 0:00:05]} 4. O-O {[%emt 0:00:55]} d6 {[%emt 0:00:04]} 5. h3 {[%emt 0:00:43]} a6 {[%emt 0:00:08]} 6. Ba4 {[%emt 0:00:07]} Nf6 {[%emt 0:00:05]} 7. d3 {[%emt 0:00:34]} h6 {[%emt 0:00:02]} 8. c3 {[%emt 0:00:57]} b5 {[%emt 0:00:10]} 9. Bc2 {[%emt 0:00:09]} O-O {[%emt 0:00:44]} 10. Re1 {[%emt 0:00:19]} Re8 {[%emt 0:00:13]} 11. Nbd2 {[%emt 0:00:25]} Be6 {[%emt 0:00:15]} 12. Nf1 {[%emt 0:00:34]} b4 {[%emt 0:00:26]} 13. Ng3 {[%emt 0:01:40]} Qd7 {[%emt 0:00:39]} 14. d4 {[%emt 0:05:38]} exd4 {[%emt 0:00:22]} 15. cxd4 {[%emt 0:00:17]} Bb6 {[%emt 0:00:17]} 16. d5 {[%emt 0:01:09]} Bxh3 {[%emt 0:01:19]} 17. dxc6 {[%emt 0:04:22]} Qc8 {[%emt 0:00:08]} 18. gxh3 {[%emt 0:02:43]} Qxh3 {[%emt 0:00:09]} 19. Be3 {[%emt 0:02:11]} Qg4 {[%emt 0:01:15]} 20. Nh2 {[%emt 0:04:24]} Qh4 {[%emt 0:01:06]} 21. Bxb6 {[%emt 0:02:32]} cxb6 {[%emt 0:00:20]} 22. Qf3 {[%emt 0:06:42]} Re5 {[%emt 0:01:22]} 23. Rad1 {[%emt 0:06:45]} Nh5 {[%emt 0:01:42]} 24. Rd5 {[%emt 0:14:27]} Rae8 {[%emt 0:01:10]} 25. Red1 {[%emt 0:03:29]} R8e6 {[%emt 0:01:49]} 26. Rxe5 {[%emt 0:03:06]} Rxe5 {[%emt 0:00:16]} 27. c7 {[%emt 0:01:46]} Qh3 {[%emt 0:01:23]} 28. Rd5 {[%emt 0:02:26]} Nxg3 {[%emt 0:03:44]} 29. Qxg3 {[%emt 0:03:56]} Qc8 {[%emt 0:01:19]} 30. Rxe5 {[%emt 0:00:38]} dxe5 {[%emt 0:00:22]} 31. Qxe5 {[%emt 0:00:28]} Qd7 {[%emt 0:01:37]} 32. Qf4 {[%emt 0:01:59]} Qc6 {[%emt 0:01:15]} 33. Bb3 {[%emt 0:01:39]} Qg6+ {[%emt 0:00:47]} 34. Qg4 {[%emt 0:00:42]} Qc6 {[%emt 0:00:17]} 35. c8=Q+ {[%emt 0:00:15]} Qxc8 {[%emt 0:00:14]} 36. Qxc8+ {[%emt 0:00:08]} Kh7 {[%emt 0:00:03]} 37. Qf5+ {[%emt 0:00:20]} Kg8 {[%emt 0:00:25]} 38. Qxf7+ {[%emt 0:00:16]} Kh8 {[%emt 0:00:13]} 39. Qg8# {[%emt 0:00:39]} 1-0